fUSD/lending_fUSD_20260423
["ID","MTS","AMOUNT","RATE_DAILY","PERIOD"]
[421026914,1776948631867,-193.07,8.428e-05,2]
[421026916,1776948631876,-150.0,8.433e-05,2]
[421026918,1776948631886,-150.0,8.433e-05,2]
[421026920,1776948631895,-162.69,8.478e-05,2]
[421026922,1776948631905,-187.22,8.478e-05,2]
[421026924,1776948631915,-185.36,8.478e-05,2]
[421026926,1776948631924,-160.0,8.478e-05,2]
[421026928,1776948631933,-169.68,8.478e-05,2]
[421026930,1776948631943,-191.56,8.478e-05,2]
[421026932,1776948631952,-167.64,8.478e-05,2]
[421026934,1776948631962,-198.37,8.478e-05,2]
[421026935,1776948631971,-528.1,8.481e-05,2]
[421026936,1776948631980,-169.75,8.528e-05,2]
[421026937,1776948631990,-183.9,8.528e-05,2]
[421026938,1776948631999,-209.17,8.571e-05,2]
[421026939,1776948632009,-660.13,8.575e-05,2]
[421026940,1776948632018,-500.0,8.581e-05,2]
[421026941,1776948632027,-150.0,8.581e-05,2]
[421026942,1776948632038,-223.52,8.617e-05,2]
[421026943,1776948632047,-212.19,8.637e-05,2]
[421026944,1776948632056,-150.0,8.655e-05,2]
[421026945,1776948632066,-357.45,8.656e-05,2]
[421026946,1776948632076,-792.16,8.668e-05,2]
[421026947,1776948632085,-150.0,8.7e-05,2]
[421026948,1776948632095,-2285.4488,8.7e-05,2]
[421026949,1776948632104,-1974.3743,8.7e-05,2]
[421026950,1776948632113,-81840.3669,8.7e-05,2]
[421026951,1776948632122,-150.0,8.729e-05,2]
[421026952,1776948632131,-254.63,8.746e-05,2]
[421026953,1776948632141,-370.74,8.756e-05,2]
[421026954,1776948632150,-447.07,8.756e-05,2]
[421026955,1776948632160,-431.67,8.756e-05,2]
[421026956,1776948632169,-218.73,8.756e-05,2]
[421026957,1776948632178,-396.75,8.756e-05,2]
[421026958,1776948632187,-924.19,8.762e-05,2]
[421026959,1776948632196,-300.0,8.787e-05,2]
[421026960,1776948632206,-300.0,8.787e-05,2]
[421026961,1776948632215,-300.0,8.787e-05,2]
[421026962,1776948632224,-300.0,8.787e-05,2]
[421026963,1776948632234,-300.0,8.787e-05,2]
[421026964,1776948632243,-500.0,8.787e-05,2]
[421026965,1776948632252,-500.0,8.787e-05,2]
[421026966,1776948632262,-500.0,8.787e-05,2]
[421026967,1776948632271,-500.0,8.787e-05,2]
[421026968,1776948632280,-305.03250793,8.787e-05,2]
[421026969,1776948632289,-237.1223885,8.787e-05,2]
[421026970,1776948632299,-500.0,8.787e-05,2]
[421026971,1776948632308,-500.0,8.787e-05,2]
[421026972,1776948632317,-500.0,8.787e-05,2]
[421026973,1776948632326,-292.94069642,8.787e-05,2]
[421026974,1776948632335,-500.0,8.787e-05,2]
[421026975,1776948632345,-500.0,8.787e-05,2]
[421026976,1776948632354,-500.0,8.787e-05,2]
[421026977,1776948632363,-500.0,8.787e-05,2]
[421026978,1776948632372,-500.0,8.787e-05,2]
[421026979,1776948632382,-500.0,8.787e-05,2]
[421026980,1776948632391,-500.0,8.787e-05,2]
[421026981,1776948632400,-500.0,8.787e-05,2]
[421026982,1776948632409,-500.0,8.787e-05,2]
[421026983,1776948632418,-500.0,8.787e-05,2]
[421026984,1776948632427,-500.0,8.787e-05,2]
[421026985,1776948632436,-500.0,8.787e-05,2]
[421026986,1776948632445,-500.0,8.787e-05,2]
[421026987,1776948632455,-500.0,8.787e-05,2]
[421026988,1776948632464,-500.0,8.787e-05,2]
[421026989,1776948632473,-500.0,8.787e-05,2]
[421026990,1776948632483,-500.0,8.787e-05,2]
[421026991,1776948632492,-500.0,8.787e-05,2]
[421026992,1776948632501,-500.0,8.787e-05,2]
[421026993,1776948632510,-500.0,8.787e-05,2]
[421026994,1776948632520,-500.0,8.787e-05,2]
[421026995,1776948632529,-500.0,8.787e-05,2]
[421026996,1776948632538,-500.0,8.787e-05,2]
[421026997,1776948632548,-459.63548489,8.787e-05,2]
[421026998,1776948632558,-500.0,8.787e-05,2]
[421026999,1776948632567,-500.0,8.787e-05,2]
[421027000,1776948632577,-500.0,8.787e-05,2]
[421027001,1776948632586,-500.0,8.787e-05,2]
[421027002,1776948632597,-500.0,8.787e-05,2]
[421027003,1776948632606,-500.0,8.787e-05,2]
[421027004,1776948632616,-500.0,8.787e-05,2]
[421027005,1776948632628,-500.0,8.787e-05,2]
[421027006,1776948632638,-500.0,8.787e-05,2]
[421027007,1776948632647,-382.29730323,8.787e-05,2]
[421027008,1776948634383,-117.70269677,8.787e-05,2]
[421027009,1776948634393,-500.0,8.787e-05,2]
[421027010,1776948634402,-500.0,8.787e-05,2]
[421027011,1776948634411,-500.0,8.787e-05,2]
[421027012,1776948634420,-500.0,8.787e-05,2]
[421027013,1776948634429,-500.0,8.787e-05,2]
[421027014,1776948634438,-500.0,8.787e-05,2]
[421027015,1776948634447,-500.0,8.787e-05,2]
[421027016,1776948634457,-500.0,8.787e-05,2]
[421027017,1776948634466,-500.0,8.787e-05,2]
[421027018,1776948634477,-500.0,8.787e-05,2]
[421027019,1776948634488,-500.0,8.787e-05,2]
[421027020,1776948634498,-500.0,8.787e-05,2]
[421027021,1776948634509,-500.0,8.787e-05,2]
[421027022,1776948634519,-500.0,8.787e-05,2]
[421027023,1776948634528,-500.0,8.787e-05,2]
[421027024,1776948634537,-500.0,8.787e-05,2]
[421027025,1776948634547,-500.0,8.787e-05,2]
[421027026,1776948634556,-500.0,8.787e-05,2]
[421027027,1776948634565,-500.0,8.787e-05,2]
[421027028,1776948634574,-345.96354849,8.787e-05,2]
[421027029,1776948634584,-500.0,8.787e-05,2]
[421027030,1776948634593,-500.0,8.787e-05,2]
[421027031,1776948634602,-500.0,8.787e-05,2]
[421027032,1776948634612,-500.0,8.787e-05,2]
[421027033,1776948634622,-500.0,8.787e-05,2]
[421027034,1776948634632,-500.0,8.787e-05,2]
[421027035,1776948634643,-500.0,8.787e-05,2]
[421027036,1776948634654,-1680.0,8.787e-05,2]
[421027037,1776948634663,-500.0,8.788e-05,2]
[421027038,1776948634672,-500.0,8.788e-05,2]
[421027039,1776948634681,-500.0,8.788e-05,2]
[421027040,1776948634690,-500.0,8.788e-05,2]
[421027041,1776948634699,-500.0,8.788e-05,2]
[421027042,1776948634709,-250.0,8.788e-05,2]
[421027043,1776948634718,-5000.0,8.788e-05,2]
[421027044,1776948634727,-5000.0,8.788e-05,2]
[421027045,1776948634736,-5000.0,8.788e-05,2]
[421027046,1776948634746,-5000.0,8.788e-05,2]
[421027047,1776948634755,-3444.67512068,8.788e-05,2]
[421027048,1776948634764,-250.0,8.788e-05,2]
[421027049,1776948634773,-2500.0,8.8e-05,2]
[421027050,1776948634782,-150.0,8.877e-05,2]
[421027051,1776948634793,-150.0,8.877e-05,2]
[421027052,1776948634802,-150.0,8.877e-05,2]
[421027053,1776948634811,-151.0,8.896e-05,2]
[421027054,1776948634820,-151.0,8.896e-05,2]
[421027055,1776948634830,-151.0,8.897e-05,2]
[421027056,1776948634839,-459.81,8.897e-05,2]
[421027057,1776948634848,-151.0,8.899e-05,2]
[421027058,1776948634857,-151.0,8.899e-05,2]
[421027059,1776948634867,-151.0,8.899e-05,2]
[421027060,1776948634876,-151.0,8.899e-05,2]
[421027061,1776948634885,-151.0,8.899e-05,2]
[421027062,1776948634894,-151.0,8.899e-05,2]
[421027063,1776948634903,-151.0,8.899e-05,2]
[421027064,1776948634912,-215.664332,8.899e-05,2]
[421027065,1776948634922,-151.0,8.9e-05,2]
[421027066,1776948634931,-151.0,8.9e-05,2]
[421027067,1776948634940,-151.0,8.9e-05,2]
[421027068,1776948634949,-151.0,8.9e-05,2]
[421027069,1776948634958,-151.0,8.9e-05,2]
[421027070,1776948634968,-459.81,9.171e-05,2]
[421027071,1776948634977,-255.0,9.184e-05,2]
[421027072,1776948634987,-459.81,9.445e-05,2]
[421027073,1776948634996,-150.0,9.589e-05,2]
[421027074,1776948635005,-459.81,9.719e-05,2]
[421027075,1776948635015,-459.81,9.993e-05,2]
[421027076,1776948635024,-156.790353,0.0001,2]
[421027077,1776948635033,-168.08839811,0.0001,2]
[421027078,1776948635043,-170.51834393,0.0001,2]
[421027079,1776948635053,-171.75292164,0.0001,2]
[421027080,1776948635062,-433.0,0.00010102,2]
[421027081,1776948635071,-500.0,0.00010274,2]
[421027082,1776948635080,-151.0,0.00010348,2]
[421027083,1776948635090,-151.0,0.00010348,2]
[421027084,1776948635099,-1048.0,0.00010349,2]
[421027085,1776948635108,-623.0,0.00010349,2]
[421027086,1776948635117,-2059.37593434,0.00010349,2]
[421027087,1776948635130,-1470.62406566,0.00010349,2]
[421027088,1776948635139,-1349.0,0.00010349,2]
[421027089,1776948635148,-1266.0,0.00010349,2]
[421027090,1776948635157,-150.0,0.00010349,2]
[421027091,1776948635167,-927.0,0.00010349,2]
[421027092,1776948635176,-299.0,0.00010349,2]
[421027093,1776948635185,-3781.0,0.00010349,2]
[421027094,1776948635195,-2474.0,0.00010349,2]
[421027095,1776948635204,-240.0,0.00010418,2]
[421027096,1776948635213,-162.24421151,0.00010444,2]
[421027097,1776948635223,-392.62,0.0001048,2]
[421027098,1776948635232,-332.32,0.00010481,2]
[421027099,1776948635241,-477.94,0.00010481,2]
[421027100,1776948635250,-151.0,0.00010488,2]
[421027101,1776948635260,-151.0,0.00010488,2]
[421027102,1776948635269,-151.0,0.00010488,2]
[421027103,1776948635279,-151.0,0.00010488,2]
[421027104,1776948635288,-33086.6184,0.00010488,2]
[421027105,1776948635298,-2000.0,0.00010488,2]
[421027106,1776948635307,-160.0,0.0001049,2]
[421027107,1776948635316,-335.21238477,0.000105,2]
[421027108,1776948635326,-197.0,0.00010524,2]
[421027109,1776948635335,-151.0,0.0001053,2]
[421027110,1776948635344,-150.0,0.00010583,2]
[421027111,1776948635353,-150.0,0.00010583,2]
[421027112,1776948635362,-150.0,0.00010583,2]
[421027113,1776948635371,-150.0,0.00010583,2]
[421027114,1776948635380,-200.0,0.00010583,2]
[421027115,1776948635390,-158.23650103,0.00010583,2]
[421027116,1776948635399,-500.0,0.00010583,2]
[421027117,1776948635408,-500.0,0.00010583,2]
[421027118,1776948635417,-500.0,0.00010583,2]
[421027119,1776948635427,-150.0,0.00010583,2]
[421027120,1776948635436,-278.49220431,0.00010583,2]
[421027121,1776948635446,-6932.11311617,0.00010587,2]
[421027122,1776948635457,-1254.41808677,0.00010587,2]
[421027123,1776948635489,-313.13150344,0.00010587,2]
[421027124,1776948637606,-2891.29272782,0.00010587,2]
[421027125,1776948637616,-228.7075107,0.00010587,2]
[421027126,1776948637626,-2544.6713635,0.00010587,2]
[421027127,1776948637636,-151.0,0.00010587,2]
[421027128,1776948637646,-151.0,0.00010587,2]
[421027129,1776948637655,-500.0000004,0.00010589,2]
[421027130,1776948637665,-482.10179456,0.00010589,2]
[421027131,1776948637674,-500.0,0.00010589,2]
[421027132,1776948637684,-169.20354393,0.00010589,2]
[421027133,1776948637694,-461.39303469,0.00010589,2]
[421027134,1776948637703,-500.0,0.00010589,2]
[421027135,1776948637712,-500.0,0.00010589,2]
[421027136,1776948637721,-175.42339477,0.00010589,2]
[421027137,1776948637731,-500.0,0.00010589,2]
[421027138,1776948637740,-500.0,0.00010589,2]
[421027139,1776948637749,-500.0,0.00010589,2]
[421027140,1776948637759,-500.0,0.00010589,2]
[421027141,1776948637768,-337.84451515,0.00010589,2]
[421027142,1776948637778,-500.0,0.00010589,2]
[421027143,1776948637787,-500.0,0.00010589,2]
[421027144,1776948637797,-500.0,0.00010589,2]
[421027145,1776948637807,-500.0,0.00010589,2]
[421027146,1776948637816,-500.0,0.00010589,2]
[421027147,1776948637826,-500.0,0.00010589,2]
[421027148,1776948637835,-500.0,0.00010589,2]
[421027149,1776948637844,-500.0,0.00010589,2]
[421027150,1776948637854,-500.0,0.00010589,2]
[421027151,1776948637863,-500.0,0.00010589,2]
[421027152,1776948637872,-500.0,0.00010589,2]
[421027153,1776948637882,-500.0,0.00010589,2]
[421027154,1776948637892,-500.0,0.00010589,2]
[421027155,1776948637901,-150.0,0.00010589,2]
[421027156,1776948637910,-500.0,0.00010589,2]
[421027157,1776948637920,-500.0000005,0.0001059,2]
[421027158,1776948637930,-192.88481976,0.0001059,2]
[421027159,1776948637939,-56730.01086476,0.0001059,2]
[421027160,1776948637951,-4597.34657096,0.0001059,2]
[421027161,1776948637961,-151.0,0.0001059,2]
[421027162,1776948637971,-151.0,0.0001059,2]
[421027163,1776948637980,-151.0,0.0001059,2]
[421027164,1776948637990,-158.051368,0.0001059,2]
[421027165,1776948638000,-500.0,0.0001059,2]
[421027166,1776948638009,-151.0,0.0001059,2]
[421027167,1776948638019,-151.0,0.0001059,2]
[421027168,1776948638028,-1144.0,0.0001059,3]
[421027169,1776948638038,-185.0,0.0001059,3]
[421027170,1776948638048,-1532.0,0.0001059,2]
[421027171,1776948638058,-152.0,0.0001059,2]
[421027172,1776948638067,-1532.0,0.0001059,2]
[421027173,1776948638076,-1532.0,0.0001059,2]
[421027174,1776948638089,-1532.0,0.0001059,2]
[421027175,1776948638099,-1288.23732989,0.0001059,2]
[421027176,1776948638108,-161.0,0.0001059,3]
[421027177,1776948638118,-152.0,0.00010592,7]
[421027178,1776948638127,-200.70865576,0.00010611,2]
[421027179,1776948638136,-33572.14040506,0.00010614,2]
[421027180,1776948638148,-829.67010334,0.00010614,2]
[421027391,1776948642558,-151.0,0.0001059,2]
[421027392,1776948642569,-6938.3059686,0.00010614,2]
[421027393,1776948642581,-250.8267145,0.00010614,2]
[421027394,1776948642665,-262.0,0.00010614,2]
[421027443,1776949832229,-300.0,8.218e-05,2]
[421027444,1776949832238,-280.0,8.219e-05,2]
[421027445,1776949832250,-5000.0,8.219e-05,2]
[421027446,1776949832260,-250.0,8.219e-05,2]
[421027447,1776949832270,-300.0,8.22e-05,2]
[421027448,1776949832279,-300.0,8.223e-05,2]
[421027449,1776949832289,-200.70865576,8.247e-05,2]
[421027450,1776949832298,-5000.0,8.282e-05,2]
[421027451,1776949832307,-5000.0,8.282e-05,2]
[421027452,1776949832317,-2687.73683944,8.282e-05,2]
[421027453,1776949832326,-150.0,8.499e-05,2]
[421027454,1776949832335,-48649.62021274,8.5e-05,2]
[421027455,1776949832347,-3271.18531595,8.5e-05,2]
[421027456,1776949832683,-366.0,8.5e-05,2]
[421027461,1776949837901,-306.33129804,8.15e-05,2]
[421027462,1776949838064,-57949.36060196,8.15e-05,2]
[421027463,1776949838074,-13299.29057131,8.5e-05,2]
[421027464,1776949838083,-150.99,8.5e-05,2]
[421027465,1776949838456,-4765.89239727,8.5e-05,2]
[421027468,1776949838493,-32117.27760273,8.5e-05,2]
[421027469,1776949838502,-1123.692,8.5e-05,2]
[421027470,1776949838511,-4649.1176,8.6e-05,2]
[421027471,1776949838520,-245.38233683,8.7e-05,2]
[421027472,1776949838529,-500.0,8.797e-05,2]
[421027473,1776949838539,-10358.01479011,8.798e-05,2]
[421027474,1776949838551,-829.67010334,8.798e-05,2]
[421027477,1776949840097,-1517.02387064,8.798e-05,2]
[421027496,1776949842943,-15707.25583591,8.798e-05,2]
[421027497,1776949842952,-300.0,9.04e-05,2]
[421027498,1776949842962,-420.0,9.04e-05,2]
[421027499,1776949842971,-300.0,9.041e-05,2]
[421027500,1776949842980,-300.0,9.041e-05,2]
[421027501,1776949842990,-5000.0,9.041e-05,2]
[421027502,1776949842999,-250.0,9.041e-05,2]
[421027503,1776949843008,-500.0,9.071e-05,2]
[421027504,1776949843017,-327.9870533,9.223e-05,2]
[421027505,1776949843026,-255.0,9.349e-05,2]
[421027506,1776949843036,-162.24421151,9.862e-05,2]
[421027507,1776949843045,-160.0,9.862e-05,2]
[421027508,1776949843054,-587.0,9.944e-05,2]
[421027509,1776949843063,-200.0,0.0001,2]
[421027510,1776949843072,-151.0,0.0001,2]
[421027511,1776949843081,-151.0,0.0001,2]
[421027512,1776949843090,-151.0,0.0001,2]
[421027513,1776949843099,-151.0,0.0001,2]
[421027514,1776949843109,-151.0,0.0001,2]
[421027515,1776949843118,-151.0,0.0001,2]
[421027516,1776949843127,-151.0,0.0001,2]
[421027517,1776949843136,-151.0,0.0001,2]
[421027518,1776949843146,-168.53942598,0.0001,2]
[421027519,1776949843155,-151.0,0.0001,2]
[421027520,1776949843164,-151.0,0.0001,2]
[421027521,1776949843173,-151.0,0.0001,2]
[421027522,1776949843183,-151.0,0.0001,2]
[421027523,1776949843192,-151.0,0.0001,2]
[421027524,1776949843202,-151.0,0.0001,2]
[421027525,1776949843211,-151.0,0.0001,2]
[421027526,1776949843221,-151.0,0.0001,2]
[421027527,1776949843231,-151.0,0.0001,2]
[421027528,1776949843240,-151.0,0.0001,2]
[421027529,1776949843250,-151.0,0.0001,2]
[421027530,1776949843260,-151.0,0.0001,2]
[421027531,1776949843269,-151.0,0.0001,2]
[421027532,1776949843278,-151.0,0.0001,2]
[421027533,1776949843288,-151.0,0.0001,2]
[421027534,1776949843297,-151.0,0.0001,2]
[421027535,1776949843307,-151.0,0.0001,2]
[421027536,1776949843317,-7276.78,0.00010122,2]
[421027537,1776949843326,-6032.0,0.00010161,2]
[421027538,1776949843336,-602.0,0.00010219,2]
[421027539,1776949843346,-2500.0,0.00010251,2]
[421027540,1776949843355,-3638.39,0.00010277,2]
[421027541,1776949843365,-433.0,0.00010284,2]
[421027542,1776949843375,-1352.0,0.000103,2]
[421027543,1776949843386,-580.79521125,0.00010329,2]
[421027544,1776949843396,-472.47402962,0.00010329,2]
[421027545,1776949843406,-151.0,0.00010329,2]
[421027546,1776949843415,-163.45925804,0.00010329,2]
[421027547,1776949843425,-174.61919141,0.00010329,2]
[421027548,1776949843435,-151.0,0.0001035,2]
[421027549,1776949843444,-150.0,0.00010351,2]
[421027550,1776949843454,-150.0,0.00010351,2]
[421027551,1776949843463,-1349.0,0.00010351,2]
[421027552,1776949843473,-3530.0,0.00010351,2]
[421027553,1776949843482,-623.0,0.00010351,2]
[421027554,1776949843491,-1266.0,0.00010351,2]
[421027555,1776949843502,-927.0,0.00010351,2]
[421027556,1776949843511,-1219.0,0.00010351,2]
[421027557,1776949843520,-3781.0,0.00010351,2]
[421027558,1776949843530,-2474.0,0.00010351,2]
[421027559,1776949843539,-477.84,0.00010451,2]
[421027560,1776949843549,-498.65571072,0.00010466,2]
[421027561,1776949843558,-350.0,0.00010467,2]
[421027562,1776949843567,-183.4,0.0001048,2]
[421027563,1776949843577,-638.31,0.00010481,2]
[421027564,1776949843589,-1000.0,0.000105,2]
[421027565,1776949843599,-300.0,0.000105,2]
[421027566,1776949843610,-61327.35743572,0.0001051,2]
[421027567,1776949843621,-151.0,0.0001051,2]
[421027568,1776949843631,-151.0,0.0001051,2]
[421027569,1776949843641,-151.0,0.0001051,2]
[421027570,1776949843650,-151.0,0.0001051,2]
[421027571,1776949843659,-151.0,0.0001051,2]
[421027572,1776949843670,-2000.0,0.00010514,2]
[421027573,1776949843680,-668.0,0.00010583,2]
[421027574,1776949843690,-668.0,0.00010583,2]
[421027575,1776949843699,-668.0,0.00010583,2]
[421027576,1776949843709,-668.0,0.00010583,2]
[421027577,1776949843719,-668.0,0.00010583,2]
[421027578,1776949843728,-668.0,0.00010583,2]
[421027579,1776949843738,-668.0,0.00010583,2]
[421027580,1776949843748,-668.0,0.00010583,2]
[421027581,1776949843758,-668.0,0.00010583,2]
[421027582,1776949843768,-668.0,0.00010583,2]
[421027583,1776949843777,-668.0,0.00010583,2]
[421027584,1776949843787,-668.0,0.00010583,2]
[421027585,1776949843796,-668.0,0.00010583,2]
[421027586,1776949843806,-668.0,0.00010583,2]
[421027587,1776949843815,-668.0,0.00010583,2]
[421027588,1776949843825,-668.0,0.00010583,2]
[421027589,1776949843835,-668.0,0.00010583,2]
[421027590,1776949843844,-150.0,0.00010583,2]
[421027591,1776949843854,-150.0,0.00010583,2]
[421027592,1776949843865,-150.0,0.00010583,2]
[421027593,1776949843875,-263.03998452,0.00010583,2]
[421027594,1776949843884,-668.0,0.00010583,2]
[421027595,1776949843893,-668.0,0.00010583,2]
[421027596,1776949843903,-150.0,0.00010583,2]
[421027597,1776949843912,-150.0,0.00010583,2]
[421027598,1776949843921,-668.0,0.00010583,2]
[421027599,1776949843930,-668.0,0.00010583,2]
[421027600,1776949843940,-668.0,0.00010583,2]
[421027601,1776949843949,-668.0,0.00010583,2]
[421027602,1776949843958,-688.0,0.00010583,2]
[421027603,1776949843967,-500.0,0.00010583,2]
[421027604,1776949843977,-500.0,0.00010583,2]
[421027605,1776949843986,-500.0,0.00010583,2]
[421027606,1776949843995,-500.0,0.00010583,2]
[421027607,1776949844004,-388.84984313,0.00010583,2]
[421027608,1776949844014,-500.0,0.00010597,2]
[421027609,1776949844023,-482.10179456,0.00010597,2]
[421027610,1776949844032,-500.0,0.00010597,2]
[421027611,1776949844042,-500.0,0.00010597,2]
[421027612,1776949844051,-500.0,0.00010597,2]
[421027613,1776949844060,-500.0,0.00010597,2]
[421027614,1776949844069,-500.0,0.00010597,2]
[421027615,1776949844078,-500.0,0.00010597,2]
[421027616,1776949844087,-500.0,0.00010597,2]
[421027617,1776949844097,-175.42339477,0.00010597,2]
[421027618,1776949844106,-500.0,0.00010597,2]
[421027619,1776949844117,-500.0,0.00010597,2]
[421027620,1776949844127,-500.0,0.00010597,2]
[421027621,1776949844137,-500.0,0.00010597,2]
[421027622,1776949844147,-500.0,0.00010597,2]
[421027623,1776949844157,-500.0,0.00010597,2]
[421027624,1776949844167,-500.0,0.00010597,2]
[421027625,1776949844176,-500.0,0.00010597,2]
[421027626,1776949844186,-500.0,0.00010597,2]
[421027627,1776949844196,-500.0,0.00010597,2]
[421027628,1776949844205,-500.0,0.00010597,2]
[421027629,1776949844215,-393.27256345,0.00010597,2]
[421027630,1776949844224,-500.0,0.00010597,2]
[421027631,1776949844234,-500.0,0.00010597,2]
[421027632,1776949844244,-500.0,0.00010597,2]
[421027633,1776949844253,-542.05373176,0.00010597,2]
[421027634,1776949844263,-500.0,0.00010597,2]
[421027635,1776949844272,-500.0,0.00010597,2]
[421027636,1776949844282,-550.0,0.00010597,2]
[421027637,1776949844291,-500.0,0.00010597,2]
[421027638,1776949844300,-500.0,0.00010597,2]
[421027639,1776949844310,-500.0,0.00010597,2]
[421027640,1776949844325,-500.0,0.00010597,2]
[421027641,1776949844334,-500.0,0.00010597,2]
[421027642,1776949844345,-413.07757427,0.00010597,2]
[421027643,1776949844354,-500.0,0.00010597,2]
[421027644,1776949844365,-5864.482573,0.00010598,2]
[421027645,1776949844375,-30052.0608333,0.00010598,2]
[421027646,1776949844384,-6092.3128021,0.00010598,2]
[421027647,1776949844394,-30009.4151092,0.00010598,2]
[421027653,1776949846021,-1287.0224809,0.00010598,2]
[421027654,1776949846031,-64.9775191,0.00010598,2]
[421027655,1776949846130,-163.7299916,0.00010598,2]
[421027656,1776949846141,-151.0,0.00010598,2]
[421027657,1776949846151,-1001.03981799,0.00010598,2]
[421027658,1776949846244,-2107.74816931,0.00010598,2]
[421027659,1776949846254,-151.0,0.00010598,2]
[421027660,1776949846264,-151.0,0.00010598,2]
[421027661,1776949846273,-158.051368,0.00010598,2]
[421027662,1776949846284,-1000.0,0.000106,3]
[421027663,1776949846294,-1800.0,0.000106,2]
[421027664,1776949846308,-1298.87170763,0.00010608,2]
[421027665,1776949846318,-152.0,0.00010614,2]
[421027666,1776949846328,-320.92476896,0.00010614,2]
[421027701,1776949923939,-524.15969,0.00043553,120]
[421027702,1776949923972,-600.0,0.00043553,120]
[421027703,1776949924012,-487.0,0.00043553,120]
[421027704,1776949924051,-487.0,0.00043553,120]
[421027705,1776949924088,-487.0,0.00043553,120]
[421027706,1776949924125,-487.0,0.00043553,120]
[421027707,1776949924163,-487.0,0.00043553,120]
[421027708,1776949924199,-487.0,0.00043553,120]
[421027709,1776949924235,-487.0,0.00043553,120]
[421027710,1776949924269,-487.0,0.00043553,120]
[421027711,1776949924303,-487.0,0.00043553,120]
[421027712,1776949924339,-487.0,0.00043553,120]
[421027713,1776949924373,-487.0,0.00043553,120]
[421027714,1776949924414,-487.0,0.00043553,120]
[421027715,1776949924449,-487.0,0.00043553,120]
[421027716,1776949924486,-487.0,0.00043553,120]
[421027717,1776949924522,-487.0,0.00043553,120]
[421027718,1776949924557,-487.0,0.00043553,120]
[421027719,1776949924593,-487.0,0.00043553,120]
[421027720,1776949924634,-487.0,0.00043553,120]
[421027721,1776949924672,-487.0,0.00043553,120]
[421027722,1776949924710,-487.0,0.00043553,120]
[421027723,1776949924746,-487.0,0.00043553,120]
[421027724,1776949924784,-487.0,0.00043553,120]
[421027725,1776949924822,-487.0,0.00043553,120]
[421027726,1776949924858,-487.0,0.00043553,120]
[421027727,1776949924892,-487.0,0.00043553,120]
[421027728,1776949924927,-487.0,0.00043553,120]
[421027729,1776949924964,-487.0,0.00043553,120]
[421027730,1776949924998,-487.0,0.00043553,120]
[421027731,1776949925031,-487.0,0.00043553,120]
[421027732,1776949925064,-487.0,0.00043553,120]
[421027733,1776949925097,-487.0,0.00043553,120]
[421027734,1776949925131,-487.0,0.00043553,120]
[421027735,1776949925164,-487.0,0.00043553,120]
[421027736,1776949925197,-487.0,0.00043553,120]
[421027737,1776949925230,-487.0,0.00043553,120]
[421027738,1776949925264,-327.4,0.00043553,120]
[421027739,1776949925297,-1000.0,0.00043553,120]
[421027740,1776949925331,-1000.0,0.00043553,120]
[421027741,1776949925365,-1000.0,0.00043553,120]
[421027742,1776949925397,-1000.0,0.00043553,120]
[421027743,1776949925430,-1000.0,0.00043553,120]
[421027744,1776949925463,-1000.0,0.00043553,120]
[421027745,1776949925496,-1000.0,0.00043553,120]
[421027746,1776949925529,-1000.0,0.00043553,120]